lending/lending_fUSD_20260110
["ID","MTS","AMOUNT","RATE_DAILY","PERIOD"]
[401244133,1768068631968,-200.0,0.00016643,2]
[401244134,1768068631978,-1200.0,0.00016693,2]
[401244135,1768068631987,-2779.93447807,0.00016694,2]
[401244136,1768068632007,-1598.32710416,0.00016694,2]
[401244137,1768068632019,-2690.79094,0.00016694,2]
[401244138,1768068632030,-434.1571506,0.00016694,2]
[401244162,1768068637936,-1106.87797166,0.0001636,2]
[401244163,1768068637946,-1341.1221961,0.0001636,2]
[401244164,1768068637958,-4496.79032717,0.00016694,2]
[401244165,1768068637967,-500.0,0.00016761,2]
[401244166,1768068637979,-500.0,0.00016761,2]
[401244167,1768068637988,-263.34673242,0.00016761,2]
[401244168,1768068638001,-236.65326758,0.00016761,2]
[401244169,1768068638011,-168.03494969,0.00016761,2]
[401244170,1768068638023,-331.96505031,0.00016761,2]
[401244171,1768068638033,-500.0,0.00016761,2]
[401244172,1768068638042,-185.68044924,0.00016761,2]
[401244173,1768068638055,-314.31955076,0.00016761,2]
[401244174,1768068638065,-500.0,0.00016761,2]
[401244175,1768068638075,-185.53104924,0.00016761,2]
[401244176,1768068638087,-314.46895076,0.00016761,2]
[401244177,1768068638096,-500.0,0.00016761,2]
[401244178,1768068638107,-186.04297924,0.00016761,2]
[401244179,1768068638118,-313.95702076,0.00016761,2]
[401244180,1768068638128,-192.29002041,0.00016761,2]
[401244181,1768068638139,-307.70997959,0.00016761,2]
[401244182,1768068638149,-500.0,0.00016761,2]
[401244183,1768068638159,-500.0,0.00016761,2]
[401244184,1768068638169,-500.0,0.00016761,2]
[401244185,1768068638179,-32101.58508053,0.00016762,2]
[401244186,1768068638191,-59227.963695,0.00016762,2]
[401244187,1768068638203,-600.0,0.00016762,2]
[401244195,1768068638278,-42216.74504896,0.00016762,2]
[401244197,1768068638290,-871.59133588,0.00016762,2]
[401244199,1768068638303,-1549.3014806,0.00016762,2]
[401244202,1768068638315,-1157.83394336,0.00016762,2]
[401244204,1768068638326,-1583.41443103,0.00016762,2]
[401244211,1768068638384,-500.0,0.00016761,2]
[401244213,1768068638394,-1526.4797073,0.00016762,2]
[401244216,1768068638405,-499.21428765,0.00016762,2]
[401244218,1768068638416,-944.33,0.00016762,2]
[401244220,1768068638427,-431.69598331,0.00016762,2]
[401244222,1768068638438,-1323.45921772,0.00016762,2]
[401244224,1768068638449,-2320.18029496,0.00016762,2]
[401244226,1768068638461,-423.21205381,0.00016762,2]
[401244228,1768068638472,-3017.06644853,0.00016762,2]
[401244238,1768068638561,-500.0,0.00016761,2]
[401244240,1768068638571,-500.0,0.00016761,2]
[401244243,1768068638582,-2002.10256196,0.00016762,2]
[401244245,1768068638593,-36659.22978072,0.00016762,2]
[401244383,1768068639942,-500.0,0.00016761,2]
[401244386,1768068639952,-500.0,0.00016761,2]
[401244389,1768068639961,-500.0,0.00016761,2]
[401244391,1768068639970,-500.0,0.00016761,2]
[401244393,1768068639979,-500.0,0.00016761,2]
[401244395,1768068639987,-500.0,0.00016761,2]
[401244397,1768068639996,-250.0,0.00016761,2]
[401244399,1768068640005,-4547.00312763,0.00016762,2]
[401244402,1768068640036,-405.0,0.00016762,2]
[401244404,1768068640047,-9037.39875583,0.00016762,2]
[401244406,1768068640058,-453.065,0.00016762,2]
[401244408,1768068640068,-3363.5785,0.00016762,2]
[401244410,1768068640079,-8117.35424924,0.00016762,2]
[401244413,1768068640091,-785621.19501598,0.00016762,2]
[401244414,1768068640100,-1000.0,0.00016813,2]
[401244416,1768068640109,-6691.43,0.00016862,2]
[401244418,1768068640118,-1093.94,0.00016881,2]
[401244420,1768068640127,-195.52,0.00016935,2]
[401244422,1768068640137,-184.6,0.00016972,2]
[401244423,1768068640145,-168.0,0.00017072,2]
[401244425,1768068640154,-168.0,0.00017202,2]
[401244427,1768068640163,-150.0,0.0001726,2]
[401244429,1768068640173,-150.0,0.0001726,2]
[401244431,1768068640182,-150.0,0.0001726,2]
[401244433,1768068640191,-150.0,0.0001726,2]
[401244435,1768068640200,-150.0,0.0001726,2]
[401244436,1768068640209,-150.0,0.0001726,2]
[401244438,1768068640218,-150.0,0.0001726,2]
[401244440,1768068640227,-150.0,0.0001726,2]
[401244442,1768068640236,-150.0,0.0001726,2]
[401244444,1768068640245,-228.01696558,0.0001733,2]
[401244446,1768068640255,-663.93287602,0.0001733,2]
[401244448,1768068640263,-998.0,0.0001733,2]
[401244450,1768068640272,-1405.0,0.00017341,2]
[401244452,1768068640281,-1330.0,0.00017341,2]
[401244454,1768068640290,-3468.0,0.00017341,2]
[401244455,1768068640299,-505.0,0.00017341,2]
[401244457,1768068640308,-1266.0,0.00017341,2]
[401244459,1768068640317,-1201.0,0.00017341,2]
[401244461,1768068640325,-914.0,0.00017341,2]
[401244463,1768068640335,-6554.0,0.00017341,2]
[401244464,1768068640343,-2437.0,0.00017341,2]
[401244466,1768068640353,-4820.0,0.00017341,2]
[401244468,1768068640363,-159.16121496,0.00017361,2]
[401244470,1768068640372,-150.0,0.00017413,2]
[401244472,1768068640381,-168.0,0.00017464,2]
[401244474,1768068640391,-513.51212024,0.00017499,2]
[401244476,1768068640400,-500.0,0.00017499,2]
[401244478,1768068640409,-500.0,0.00017499,2]
[401244480,1768068640417,-288.33986442,0.00017499,2]
[401244482,1768068640429,-475.87463091,0.00017499,2]
[401244484,1768068640438,-500.0,0.00017499,2]
[401244486,1768068640447,-312.0964356,0.00017499,2]
[401244488,1768068640457,-500.0,0.00017499,2]
[401244490,1768068640466,-500.0,0.00017499,2]
[401244492,1768068640475,-500.0,0.00017499,2]
[401244493,1768068640484,-500.0,0.00017499,2]
[401244495,1768068640493,-1000.0,0.000175,2]
[401244497,1768068640502,-150.0,0.0001758,2]
[401244499,1768068640511,-166.66,0.00017591,2]
[401244501,1768068640521,-3314.784825,0.0001764,2]
[401244503,1768068640531,-150.0,0.00017644,2]
[401244505,1768068640540,-150.0,0.00017699,2]
[401244507,1768068640549,-150.0,0.00017699,2]
[401244509,1768068640558,-152.08698658,0.00017699,2]
[401244511,1768068640569,-150.0,0.00017699,2]
[401244513,1768068640578,-500.0,0.00017699,2]
[401244515,1768068640587,-500.0,0.00017699,2]
[401244517,1768068640597,-150.0,0.00017699,2]
[401244518,1768068640606,-150.0,0.00017699,2]
[401244520,1768068640615,-150.0,0.00017699,2]
[401244522,1768068640623,-1008.0,0.000177,2]
[401244524,1768068640633,-200.0,0.00017754,2]
[401244526,1768068640645,-150.0,0.00017754,2]
[401244528,1768068640654,-500.0,0.00017754,2]
[401244530,1768068640663,-150.0,0.00017754,2]
[401244532,1768068640672,-500.0,0.00017754,2]
[401244534,1768068640680,-150.0,0.00017754,2]
[401244536,1768068640690,-150.0,0.00017754,2]
[401244537,1768068640699,-861.589,0.00017781,2]
[401244539,1768068640708,-500.0,0.00017788,2]
[401244541,1768068640718,-500.0,0.00017788,2]
[401244543,1768068640727,-500.0,0.00017788,2]
[401244545,1768068640737,-500.0,0.00017788,2]
[401244547,1768068640746,-4240.9866,0.00017795,2]
[401244549,1768068640755,-3726.2263,0.00017795,2]
[401244551,1768068640764,-1740.0035,0.000178,2]
[401244553,1768068640773,-6801.7704,0.000178,2]
[401244555,1768068640782,-155.88253914,0.000178,2]
[401244556,1768068640791,-4355.84281521,0.000178,2]
[401244558,1768068640800,-150.0,0.00017808,2]
[401244560,1768068640809,-150.0,0.00017809,2]
[401244562,1768068640818,-500.0,0.00017809,2]
[401244564,1768068640827,-150.0,0.00017809,2]
[401244566,1768068640836,-189.41796982,0.00017809,2]
[401244568,1768068640846,-150.0,0.00017809,2]
[401244570,1768068640855,-150.0,0.00017809,2]
[401244572,1768068640864,-290.33169083,0.00017849,2]
[401244574,1768068640873,-200.0,0.00017855,2]
[401244575,1768068640882,-2000.0,0.00017856,2]
[401244577,1768068640891,-200.0,0.00017856,2]
[401244579,1768068640900,-194.13148969,0.00017863,2]
[401244581,1768068640909,-500.0,0.00017863,2]
[401244583,1768068640919,-232.10117033,0.00017863,2]
[401244596,1768068641173,-200.0,0.00017863,2]
[401244598,1768068641183,-200.0,0.00017863,2]
[401244600,1768068641192,-1428.6396534,0.00017872,2]
[401244602,1768068641202,-4285.9189603,0.00017872,2]
[401244604,1768068641211,-1428.32031009,0.00017885,2]
[401244606,1768068641220,-284.78,0.00017894,2]
[401244608,1768068641229,-99009.2045155,0.00017895,2]
[401244610,1768068641240,-150.0,0.000179,2]
[401244612,1768068641249,-150.0,0.000179,2]
[401244614,1768068641258,-150.0,0.000179,2]
[401244616,1768068641267,-150.0,0.000179,2]
[401244618,1768068641277,-4438.0,0.000179,2]
[401244620,1768068641285,-204.1832064,0.000179,2]
[401244622,1768068641294,-179.69793141,0.000179,3]
[401244624,1768068641304,-582.1888146,0.000179,2]
[401244626,1768068641314,-500.0,0.00017918,2]
[401244628,1768068641323,-166.66,0.00017939,2]
[401244630,1768068641333,-600.0,0.00017964,2]
[401244632,1768068641343,-500.0,0.00017973,2]
[401244634,1768068641352,-380.05360747,0.00017973,2]
[401244636,1768068641361,-500.0,0.00017973,2]
[401244638,1768068641370,-500.0,0.00017973,2]
[401244640,1768068641381,-500.0,0.00017973,2]
[401244642,1768068641391,-500.0,0.00017973,2]
[401244644,1768068641400,-500.0,0.00017973,2]
[401244646,1768068641409,-500.0,0.00017973,2]
[401244648,1768068641418,-500.0,0.00017973,2]
[401244650,1768068641428,-500.0,0.00017973,2]
[401244652,1768068641438,-500.0,0.00017973,2]
[401244654,1768068641447,-500.0,0.00017973,2]
[401244656,1768068641457,-500.0,0.00017973,2]
[401244659,1768068641466,-500.0,0.00017973,2]
[401244661,1768068641477,-500.0,0.00017973,2]
[401244663,1768068641486,-500.0,0.00017973,2]
[401244665,1768068641496,-500.0,0.00017973,2]
[401244667,1768068641505,-500.0,0.00017973,2]
[401244669,1768068641515,-500.0,0.00017973,2]
[401244671,1768068641524,-500.0,0.00017973,2]
[401244673,1768068641533,-500.0,0.00017973,2]
[401244675,1768068641542,-500.0,0.00017973,2]
[401244677,1768068641552,-500.0,0.00017973,2]
[401244679,1768068641564,-500.0,0.00017973,2]
[401244681,1768068641575,-500.0,0.00017973,2]
[401244683,1768068641583,-500.0,0.00017973,2]
[401244685,1768068641594,-632.76984978,0.00017973,2]
[401244687,1768068641604,-500.0,0.00017973,2]
[401244689,1768068641613,-171.83605725,0.00017973,2]
[401244691,1768068641622,-500.0,0.00017973,2]
[401244693,1768068641631,-500.0,0.00017973,2]
[401244695,1768068641643,-500.0,0.00017973,2]
[401244697,1768068641652,-500.0,0.00017973,2]
[401244699,1768068641661,-183.2165965,0.00017973,2]
[401244701,1768068641670,-500.0,0.00017973,2]
[401244703,1768068641679,-200.0,0.00017973,2]
[401244705,1768068641689,-300.0,0.00017977,2]
[401244707,1768068641700,-195.0,0.00017977,2]
[401244709,1768068641710,-334.51331102,0.00017977,2]
[401244711,1768068641719,-195.0,0.00017977,2]
[401244713,1768068641728,-1990.229,0.0001798,2]
[401244715,1768068641737,-189.05,0.0001798,2]
[401244717,1768068641746,-272.405,0.0001798,2]
[401244719,1768068641755,-1428.32031009,0.0001799,2]
[401244721,1768068641764,-500.0,0.00017997,2]
[401244723,1768068641773,-500.0,0.00017997,2]
[401244725,1768068641782,-500.0,0.00017999,2]
[401244726,1768068641793,-506.38314442,0.00017999,2]
[401244728,1768068641804,-1088088.08974305,0.00018,2]
[401244730,1768068641814,-111585.87503571,0.00018,2]
[401244732,1768068641824,-836641.97371314,0.00018,2]
[401244735,1768068641836,-2902.28,0.00018,7]
[401244737,1768068641845,-619234.29701054,0.00018,2]
[401244739,1768068641855,-151.0,0.00018,2]
[401244741,1768068641864,-151.0,0.00018,2]
[401244743,1768068641873,-348.619751,0.00018,2]
[401244745,1768068641882,-348.619751,0.00018,2]
[401244747,1768068641891,-348.619751,0.00018,2]
[401244748,1768068641900,-348.619751,0.00018,2]
[401244750,1768068641909,-151.0,0.00018,2]
[401244752,1768068641918,-313.790969,0.00018,2]
[401244754,1768068641927,-151.0,0.00018,2]
[401244756,1768068641936,-151.0,0.00018,2]
[401244758,1768068641945,-151.0,0.00018,2]
[401244760,1768068641954,-187.476831,0.00018,2]
[401244762,1768068641963,-165.313062,0.00018,2]
[401244764,1768068641973,-151.0,0.00018,2]
[401244766,1768068641982,-151.0,0.00018,2]
[401244768,1768068641992,-271.474756,0.00018,2]
[401244770,1768068642001,-151.0,0.00018,2]
[401244772,1768068642011,-151.0,0.00018,2]
[401244774,1768068642020,-151.0,0.00018,2]
[401244776,1768068642029,-151.0,0.00018,2]
[401244778,1768068642039,-151.0,0.00018,2]
[401244780,1768068642048,-151.0,0.00018,2]
[401244783,1768068642059,-417.155001,0.00018,2]
[401244785,1768068642068,-417.155001,0.00018,2]
[401244786,1768068642077,-417.155001,0.00018,2]
[401244788,1768068642086,-417.155001,0.00018,2]
[401244791,1768068642096,-417.155001,0.00018,2]
[401244792,1768068642106,-417.155001,0.00018,2]
[401244794,1768068642116,-417.155001,0.00018,2]
[401244796,1768068642126,-417.155001,0.00018,2]
[401244798,1768068642136,-151.0,0.00018,2]
[401244801,1768068642147,-151.0,0.00018,2]
[401244802,1768068642157,-151.0,0.00018,2]
[401244804,1768068642166,-153.741788,0.00018,2]
[401244806,1768068642176,-151.0,0.00018,2]
[401244808,1768068642186,-151.0,0.00018,2]
[401244811,1768068642196,-151.0,0.00018,2]
[401244813,1768068642205,-151.0,0.00018,2]
[401244814,1768068642214,-151.0,0.00018,2]
[401244816,1768068642223,-154.639707,0.00018,2]
[401244818,1768068642232,-151.0,0.00018,2]
[401244820,1768068642241,-240.116581,0.00018,2]
[401244823,1768068642250,-157.408237,0.00018,2]
[401244824,1768068642259,-157.408237,0.00018,2]
[401244826,1768068642269,-157.408237,0.00018,2]
[401244829,1768068642279,-157.408237,0.00018,2]
[401244831,1768068642288,-157.408237,0.00018,2]
[401244832,1768068642298,-157.408237,0.00018,2]
[401244834,1768068642307,-151.0,0.00018,2]
[401244836,1768068642315,-151.0,0.00018,2]
[401244839,1768068642325,-157.408237,0.00018,2]
[401244841,1768068642334,-157.408237,0.00018,2]
[401244842,1768068642345,-151.0,0.00018,2]
[401244844,1768068642355,-151.0,0.00018,2]
[401244846,1768068642364,-151.0,0.00018,2]
[401244848,1768068642374,-151.0,0.00018,2]
[401244850,1768068642384,-151.0,0.00018,2]
[401244852,1768068642394,-291.161837,0.00018,2]
[401244854,1768068642404,-151.0,0.00018,2]
[401244856,1768068642413,-163.576736,0.00018,2]
[401244858,1768068642423,-151.0,0.00018,2]
[401244860,1768068642432,-167.226676,0.00018,2]
[401244862,1768068642442,-151.0,0.00018,2]
[401244864,1768068642450,-151.0,0.00018,2]
[401244866,1768068642461,-174.325846,0.00018,2]
[401244868,1768068642471,-151.0,0.00018,2]
[401244870,1768068642481,-151.0,0.00018,2]
[401244872,1768068642491,-151.0,0.00018,2]
[401244874,1768068642500,-151.0,0.00018,2]
[401244876,1768068642510,-151.0,0.00018,2]
[401244878,1768068642519,-151.0,0.00018,2]
[401244880,1768068642528,-151.0,0.00018,2]
[401244882,1768068642538,-163.508585,0.00018,2]
[401244884,1768068642547,-151.0,0.00018,2]
[401244886,1768068642557,-151.0,0.00018,2]
[401244888,1768068642566,-151.0,0.00018,2]
[401244890,1768068642575,-197.343206,0.00018,2]
[401244892,1768068642584,-151.0,0.00018,2]
[401244894,1768068642594,-151.0,0.00018,2]
[401244896,1768068642605,-151.0,0.00018,2]
[401244898,1768068642614,-151.0,0.00018,2]
[401244900,1768068642624,-151.0,0.00018,2]
[401244902,1768068642634,-151.0,0.00018,2]
[401244904,1768068642646,-151.0,0.00018,2]
[401244906,1768068642656,-151.0,0.00018,2]
[401244908,1768068642666,-212.723732,0.00018,2]
[401244911,1768068642676,-151.0,0.00018,2]
[401244913,1768068642687,-151.0,0.00018,2]
[401244915,1768068642696,-213.29592,0.00018,2]
[401244917,1768068642705,-213.29592,0.00018,2]
[401244919,1768068642715,-213.29592,0.00018,2]
[401244921,1768068642724,-213.29592,0.00018,2]
[401244923,1768068642733,-213.29592,0.00018,2]
[401244925,1768068642742,-213.29592,0.00018,2]
[401244927,1768068642751,-213.29592,0.00018,2]
[401244929,1768068642761,-213.29592,0.00018,2]
[401244931,1768068642770,-201.67872,0.00018,2]
[401244933,1768068642779,-200.0,0.00018,2]
[401244935,1768068642787,-150.0,0.00018027,2]
[401244937,1768068642797,-500.0,0.00018028,2]
[401244939,1768068642806,-4355.84281515,0.00018033,2]
[401244941,1768068642816,-213.57804038,0.0001804,2]
[401244943,1768068642825,-264.0,0.00018042,2]
[401244945,1768068642835,-4198.81969622,0.00018078,2]
[401244947,1768068642844,-500.0,0.00018083,2]
[401244949,1768068642853,-1776.21806083,0.000181,2]
[401244951,1768068642862,-500.0,0.00018137,2]
[401244953,1768068642871,-284.78,0.00018168,2]
[401244955,1768068642880,-500.0,0.00018192,2]
[401244957,1768068642890,-168.0,0.00018193,2]
[401244959,1768068642899,-1000.0,0.000182,2]
[401244961,1768068642908,-195.52,0.00018205,2]
[401244963,1768068642917,-150.0,0.00018219,2]
[401244964,1768068642926,-150.0,0.00018219,2]
[401244966,1768068642936,-500.0,0.00018247,2]
[401244968,1768068642946,-4355.84281515,0.00018267,2]
[401244970,1768068642955,-166.66,0.00018287,2]
[401244972,1768068642965,-500.0,0.00018302,2]
[401244974,1768068642974,-168.0,0.00018312,2]
[401244976,1768068642984,-964.38278981,0.00018356,2]
[401244981,1768068643024,-6443.94524875,0.00018356,2]
[401244985,1768068643056,-2759.8345469,0.00018356,2]
[401244988,1768068643068,-493.65095226,0.00018356,2]
[401244990,1768068643083,-5000.00031248,0.00018356,2]
[401245063,1768068643693,-5307.61211841,0.00018356,2]
[401245177,1768068646527,-566.0,0.00017341,2]
[401245178,1768068646537,-3571.0,0.00018356,2]
[401245179,1768068646548,-817.63749,0.00018356,2]
[401245180,1768068646559,-62940.92654139,0.00018356,2]
[401245181,1768068646573,-414.0,0.00018357,2]
[401245182,1768068646585,-150.0,0.00018411,2]
[401245183,1768068646594,-284.78,0.00018442,2]
[401245184,1768068646604,-150.0,0.00018499,2]
[401245185,1768068646614,-4355.84281515,0.000185,2]
[401245186,1768068646623,-166.66,0.00018501,2]
[401245187,1768068646633,-1000.0,0.00018521,2]
[401245188,1768068646649,-427.49003768,0.00018521,2]
[401245189,1768068646659,-1000.0,0.00018521,2]
[401245190,1768068646668,-1000.0,0.00018521,2]
[401245191,1768068646677,-1000.0,0.00018521,2]
[401245192,1768068646688,-1000.0,0.00018521,2]
[401245193,1768068646697,-1000.0,0.00018521,2]
[401245194,1768068646706,-1000.0,0.00018521,2]
[401245195,1768068646717,-611.81919763,0.00018521,2]
[401245196,1768068646727,-1000.0,0.00018521,2]
[401245197,1768068646737,-1000.0,0.00018521,2]
[401245198,1768068646748,-1000.0,0.00018521,2]
[401245199,1768068646759,-1000.0,0.00018521,2]
[401245200,1768068646768,-1000.0,0.00018521,2]
[401245201,1768068646778,-1000.0,0.00018521,2]
[401245202,1768068646787,-1000.0,0.00018521,2]
[401245203,1768068646797,-1000.0,0.00018521,2]
[401245204,1768068646807,-1000.0,0.00018521,2]
[401245205,1768068646817,-151.88776982,0.00018521,2]
[401245206,1768068646827,-1000.0,0.00018521,2]
[401245207,1768068646837,-1000.0,0.00018521,2]
[401245208,1768068646849,-1000.0,0.00018521,2]
[401245209,1768068646859,-1000.0,0.00018521,2]
[401245210,1768068646870,-150.0,0.00018539,2]
[401245211,1768068646879,-150.0,0.00018539,2]
[401245212,1768068646889,-150.0,0.00018539,2]
[401245213,1768068646898,-150.0,0.00018539,2]
[401245214,1768068646908,-482.91,0.00018643,2]
[401245215,1768068646918,-482.91,0.00018643,2]
[401245216,1768068646927,-482.91,0.00018643,2]
[401245217,1768068646936,-264.0,0.00018658,2]
[401245218,1768068646946,-259.2,0.0001868,2]
[401245219,1768068646961,-4355.84281515,0.00018733,2]
[401245220,1768068646970,-168.0,0.00018789,2]
[401245221,1768068646980,-150.0,0.00018795,2]
[401245222,1768068646990,-151.16,0.000188,2]
[401245223,1768068647000,-151.16,0.000188,2]
[401245224,1768068647009,-151.16,0.000188,2]
[401245225,1768068647019,-151.16,0.000188,2]
[401245226,1768068647029,-151.16,0.000188,2]
[401245227,1768068647039,-151.16,0.000188,2]
[401245228,1768068647049,-151.16,0.000188,2]
[401245229,1768068647059,-151.16,0.000188,2]
[401245230,1768068647068,-151.16,0.000188,2]
[401245231,1768068647078,-151.16,0.000188,2]
[401245232,1768068647087,-151.16,0.000188,2]
[401245233,1768068647098,-151.16,0.000188,2]
[401245234,1768068647107,-151.16,0.000188,2]
[401245235,1768068647117,-151.16,0.000188,2]
[401245236,1768068647126,-151.16,0.000188,2]
[401245237,1768068647136,-151.16,0.000188,2]
[401245238,1768068647157,-151.16,0.000188,2]
[401245239,1768068647167,-151.16,0.000188,2]
[401245240,1768068647176,-151.16,0.000188,2]
[401245241,1768068647187,-151.16,0.000188,2]
[401245242,1768068647196,-151.16,0.000188,2]
[401245243,1768068647206,-151.16,0.000188,2]
[401245244,1768068647216,-151.16,0.000188,2]
[401245245,1768068647226,-151.16,0.000188,2]
[401245246,1768068647235,-151.16,0.000188,2]
[401245247,1768068647246,-151.16,0.000188,2]
[401245248,1768068647259,-151.16,0.000188,2]
[401245249,1768068647269,-151.16,0.000188,2]
[401245250,1768068647279,-151.16,0.000188,2]
[401245251,1768068647288,-151.16,0.000188,2]
[401245252,1768068647298,-151.16,0.000188,2]
[401245253,1768068647309,-151.16,0.000188,2]
[401245254,1768068647319,-151.16,0.000188,2]
[401245255,1768068647328,-151.16,0.000188,2]
[401245256,1768068647338,-151.16,0.000188,2]
[401245257,1768068647348,-151.16,0.000188,2]
[401245258,1768068647360,-151.16,0.000188,2]
[401245259,1768068647370,-151.16,0.000188,2]
[401245260,1768068647380,-151.16,0.000188,2]
[401245261,1768068647390,-151.16,0.000188,2]
[401245262,1768068647399,-150.0,0.00018858,2]
[401245263,1768068647409,-161.78022298,0.000189,2]
[401245264,1768068647419,-1000.0,0.00018914,2]
[401245265,1768068647429,-4355.84281515,0.00018967,2]
[401245266,1768068647439,-163.8798894,0.00018973,2]
[401245267,1768068647449,-151.16,0.0001899,2]
[401245268,1768068647459,-7509.73612327,0.00019,2]
[401245269,1768068647468,-5159.38488216,0.00019,2]
[401245270,1768068647478,-164.73,0.00019,14]
[401245271,1768068647488,-780.90435495,0.00019,2]
[401245272,1768068647498,-300.0,0.00019,2]
[401245273,1768068647509,-2300.0594404,0.00019,2]
[401245274,1768068647519,-151.0,0.00019,2]
[401245275,1768068647529,-81951.99501978,0.00019,2]
[401245276,1768068647539,-357.65726701,0.0001901,7]
[401245277,1768068647548,-1500.0,0.00019068,2]
[401245278,1768068647559,-1443.68045226,0.00019068,2]
[401245279,1768068647569,-1258.0199552,0.00019068,2]
[401245280,1768068647579,-1126.82228766,0.00019068,2]
[401245281,1768068647590,-623.933844,0.00019068,2]
[401245282,1768068647599,-1500.0,0.00019068,2]
[401245283,1768068647609,-1500.0,0.00019068,2]
[401245284,1768068647619,-1500.0,0.00019068,2]
[401245285,1768068647629,-1500.0,0.00019068,2]
[401245286,1768068647640,-1500.0,0.00019068,2]
[401245287,1768068647653,-956.72971496,0.00019068,2]
[401245288,1768068647663,-1500.0,0.00019068,2]
[401245289,1768068647673,-1500.0,0.00019068,2]
[401245290,1768068647684,-1487.99747885,0.00019068,2]
[401245291,1768068647694,-1500.0,0.00019068,2]
[401245292,1768068647703,-501.13878031,0.00019068,2]
[401245293,1768068647714,-1500.0,0.00019068,2]
[401245294,1768068647725,-1500.0,0.00019068,2]
[401245295,1768068647734,-1500.0,0.00019068,2]
[401245296,1768068647754,-166.66,0.00019092,2]
[401245297,1768068647766,-151.16,0.00019168,2]
[401245298,1768068647775,-153.471344,0.00019178,2]
[401245299,1768068647783,-272.0,0.00019178,2]
[401245300,1768068647791,-348.619751,0.00019178,2]
[401245301,1768068647801,-348.619751,0.00019178,2]
[401245302,1768068647811,-348.619751,0.00019178,2]
[401245303,1768068647821,-348.619751,0.00019178,2]
[401245304,1768068647831,-273.103655,0.00019178,2]
[401245305,1768068647841,-158.314907,0.00019178,2]
[401245306,1768068647850,-151.0,0.00019178,2]
[401245307,1768068647860,-417.155001,0.00019178,2]
[401245308,1768068647870,-417.155001,0.00019178,2]
[401245309,1768068647881,-417.155001,0.00019178,2]
[401245310,1768068647892,-417.155001,0.00019178,2]
[401245311,1768068647902,-253.817332,0.00019178,2]
[401245312,1768068647911,-151.0,0.00019178,2]
[401245313,1768068647922,-151.0,0.00019178,2]
[401245314,1768068647932,-157.408237,0.00019178,2]
[401245315,1768068647942,-157.408237,0.00019178,2]
[401245316,1768068647952,-157.408237,0.00019178,2]
[401245317,1768068647962,-151.0,0.00019178,2]
[401245318,1768068647973,-157.408237,0.00019178,2]
[401245319,1768068647982,-151.0,0.00019178,2]
[401245320,1768068647992,-151.0,0.00019178,2]
[401245321,1768068648002,-151.0,0.00019178,2]
[401245322,1768068648012,-151.0,0.00019178,2]
[401245323,1768068648023,-151.0,0.00019178,2]
[401245324,1768068648034,-151.000007,0.00019178,2]
[401245325,1768068648044,-151.0,0.00019178,2]
[401245326,1768068648055,-194.512113,0.00019178,2]